fUSD/lending_fUSD_20240915
["ID","MTS","AMOUNT","RATE_DAILY","PERIOD"]
[338195780,1726381870971,-500.0,0.00013541,2]
[338195781,1726381870980,-1774.88,0.00013541,2]
[338195782,1726381870991,-972.55,0.00013541,2]
[338195783,1726381871001,-2095.31,0.00013541,2]
[338195784,1726381871010,-1314.05,0.00013541,2]
[338195785,1726381871019,-500.0,0.00013541,2]
[338195786,1726381871029,-702.05,0.00013541,2]
[338195787,1726381871038,-500.0,0.00013541,2]
[338195788,1726381871052,-500.0,0.00013541,2]
[338195789,1726381871061,-500.0,0.00013541,2]
[338195790,1726381871070,-2013.23,0.00013541,2]
[338195791,1726381871080,-825.07,0.00013541,2]
[338195792,1726381871089,-500.0,0.00013541,2]
[338195793,1726381871098,-2411.19,0.00013541,2]
[338195794,1726381871107,-1403.46,0.00013541,2]
[338195795,1726381871116,-500.0,0.00013541,2]
[338195796,1726381871126,-500.0,0.00013541,2]
[338195797,1726381871135,-1811.7,0.00013541,2]
[338195798,1726381871144,-500.0,0.00013541,2]
[338195799,1726381871154,-500.0,0.00013541,2]
[338195800,1726381871163,-2008.95,0.00013541,2]
[338195801,1726381871172,-500.0,0.00013541,2]
[338195802,1726381871181,-4530.5,0.00013541,2]
[338195803,1726381871191,-500.0,0.00013541,2]
[338195804,1726381871200,-1011.47,0.00013541,2]
[338195805,1726381871210,-500.0,0.00013541,2]
[338195806,1726381871219,-1086.44,0.00013541,2]
[338195807,1726381871229,-1287.06,0.00013541,2]
[338195808,1726381871238,-4693.61,0.00013541,2]
[338195809,1726381871247,-591.99,0.00013541,2]
[338195810,1726381871257,-883.11,0.00013541,2]
[338195811,1726381871266,-500.0,0.00013541,2]
[338195812,1726381871275,-500.0,0.00013541,2]
[338195813,1726381871285,-2585.46,0.00013541,2]
[338195814,1726381871294,-549.37,0.00013541,2]
[338195815,1726381871303,-500.0,0.00013541,2]
[338195816,1726381871313,-500.0,0.00013541,2]
[338195817,1726381871322,-1516.16,0.00013541,2]
[338195818,1726381871332,-1197.17,0.00013541,2]
[338195819,1726381871341,-500.0,0.00013541,2]
[338195820,1726381871351,-500.0,0.00013541,2]
[338195821,1726381871360,-564.11,0.00013541,2]
[338195822,1726381871369,-500.0,0.00013541,2]
[338195823,1726381871379,-1898.25,0.00013541,2]
[338195824,1726381871388,-500.0,0.00013541,2]
[338195825,1726381871397,-500.0,0.00013541,2]
[338195826,1726381871406,-500.0,0.00013541,2]
[338195827,1726381871416,-500.0,0.00013541,2]
[338195828,1726381871425,-2218.48,0.00013541,2]
[338195829,1726381871435,-500.0,0.00013541,2]
[338195830,1726381871444,-500.0,0.00013541,2]
[338195831,1726381871454,-500.0,0.00013541,2]
[338195832,1726381871463,-703.37,0.00013541,2]
[338195833,1726381871473,-2680.39,0.00013541,2]
[338195834,1726381871482,-500.0,0.00013541,2]
[338195835,1726381871491,-754.25,0.00013541,2]
[338195836,1726381871500,-500.0,0.00013541,2]
[338195837,1726381871509,-2592.96,0.00013541,2]
[338195838,1726381871518,-2186.4,0.00013541,2]
[338195839,1726381871528,-500.0,0.00013541,2]
[338195840,1726381871538,-500.0,0.00013541,2]
[338195841,1726381871547,-240.26312619,0.00013541,2]
[338195842,1726381871556,-500.0,0.00013541,2]
[338195843,1726381871565,-500.0,0.00013541,2]
[338195844,1726381871577,-1160.35,0.00013541,2]
[338195845,1726381871586,-731.33,0.00013541,2]
[338195846,1726381871596,-500.0,0.00013541,2]
[338195847,1726381871606,-1085.1,0.00013541,2]
[338195848,1726381871618,-500.0,0.00013541,2]
[338195849,1726381871627,-500.0,0.00013541,2]
[338195850,1726381871637,-500.0,0.00013541,2]
[338195851,1726381871646,-500.0,0.00013541,2]
[338195852,1726381871655,-1012.8,0.00013541,2]
[338195853,1726381871665,-151.0,0.00013541,2]
[338195854,1726381871675,-500.0,0.00013541,2]
[338195855,1726381871685,-734.27,0.00013541,2]
[338195856,1726381871694,-1715.16,0.00013541,2]
[338195857,1726381871705,-1130.99,0.00013541,2]
[338195858,1726381871715,-500.0,0.00013541,2]
[338195859,1726381871725,-1739.74,0.00013541,2]
[338195860,1726381871734,-1274.83,0.00013541,2]
[338195861,1726381871744,-500.0,0.00013541,2]
[338195862,1726381871754,-1291.51,0.00013541,2]
[338195863,1726381871764,-150.0,0.00013541,2]
[338195864,1726381871774,-633.82809575,0.00013541,2]
[338195865,1726381871783,-954.06,0.00013541,2]
[338195866,1726381871792,-500.0,0.00013541,2]
[338195867,1726381871801,-2257.81,0.00013541,2]
[338195868,1726381871810,-500.0,0.00013541,2]
[338195869,1726381871819,-830.24,0.00013541,2]
[338195870,1726381871828,-500.0,0.00013541,2]
[338195871,1726381871838,-485.98350584,0.00013541,2]
[338195872,1726381871847,-500.0,0.00013541,2]
[338195873,1726381871856,-531.76,0.00013541,2]
[338195874,1726381871865,-1009.16,0.00013541,2]
[338195875,1726381871875,-500.0,0.00013541,2]
[338195876,1726381871884,-855.66,0.00013541,2]
[338195877,1726381871893,-1213.14,0.00013541,2]
[338195878,1726381871903,-500.0,0.00013541,2]
[338195879,1726381871912,-300.0,0.00013541,2]
[338195880,1726381871921,-1067.4,0.00013541,2]
[338195881,1726381871930,-2435.95,0.00013541,2]
[338195882,1726381871939,-3227.21,0.00013541,2]
[338195883,1726381871949,-500.0,0.00013541,2]
[338195884,1726381871958,-500.0,0.00013541,2]
[338195885,1726381871967,-500.0,0.00013541,2]
[338195886,1726381871976,-3930.97,0.00013541,2]
[338195887,1726381871985,-500.0,0.00013541,2]
[338195888,1726381871995,-500.0,0.00013541,2]
[338195889,1726381872003,-500.0,0.00013541,2]
[338195890,1726381872012,-500.0,0.00013541,2]
[338195891,1726381872022,-500.0,0.00013541,2]
[338195892,1726381872032,-500.0,0.00013541,2]
[338195893,1726381872041,-500.0,0.00013541,2]
[338195894,1726381872054,-2146.19,0.00013541,2]
[338195895,1726381872064,-500.0,0.00013541,2]
[338195896,1726381872073,-1007.32,0.00013541,2]
[338195897,1726381872082,-967.59,0.00013541,2]
[338195898,1726381872091,-2187.48,0.00013541,2]
[338195899,1726381872100,-500.0,0.00013541,2]
[338195900,1726381872110,-1595.7,0.00013541,2]
[338195901,1726381872120,-500.0,0.00013541,2]
[338195902,1726381872129,-1908.57,0.00013541,2]
[338195903,1726381872139,-1509.55,0.00013541,2]
[338195904,1726381872148,-500.0,0.00013541,2]
[338195905,1726381872158,-1116.92,0.00013541,2]
[338195906,1726381872167,-964.53,0.00013541,2]
[338195907,1726381872176,-500.0,0.00013541,2]
[338195908,1726381872185,-638.72480351,0.00013541,2]
[338195909,1726381872194,-500.0,0.00013541,2]
[338195910,1726381872204,-500.0,0.00013541,2]
[338195911,1726381872214,-500.0,0.00013541,2]
[338195912,1726381872223,-500.0,0.00013541,2]
[338195913,1726381872233,-815.57,0.00013541,2]
[338195914,1726381872242,-653.94,0.00013541,2]
[338195915,1726381872251,-500.0,0.00013541,2]
[338195916,1726381872261,-1911.42,0.00013541,2]
[338195917,1726381872271,-500.0,0.00013541,2]
[338195918,1726381872280,-928.7,0.00013541,2]
[338195919,1726381872290,-384.568232,0.00013541,2]
[338195920,1726381872300,-1350.49,0.00013541,2]
[338195921,1726381872309,-644.1013273,0.00013541,2]
[338195922,1726381872320,-500.0,0.00013541,2]
[338195923,1726381872336,-500.0,0.00013541,2]
[338195924,1726381872345,-978.78,0.00013541,2]
[338195925,1726381872354,-500.0,0.00013541,2]
[338195926,1726381872363,-798.75,0.00013541,2]
[338195927,1726381872372,-1391.08,0.00013541,2]
[338195928,1726381872381,-818.39,0.00013541,2]
[338195929,1726381872390,-500.0,0.00013541,2]
[338195930,1726381872399,-1263.61,0.00013541,2]
[338195931,1726381872408,-1098.62,0.00013541,2]
[338195932,1726381872418,-3855.34,0.00013541,2]
[338195933,1726381872427,-1496.11,0.00013541,2]
[338195934,1726381872436,-955.37,0.00013541,2]
[338195935,1726381872445,-1674.18,0.00013541,2]
[338195936,1726381872454,-18855.33,0.00013541,2]
[338195937,1726381872463,-754.19,0.00013541,2]
[338195938,1726381872473,-996.34,0.00013541,2]
[338195939,1726381872482,-500.0,0.00013541,2]
[338195940,1726381872491,-689.31,0.00013541,2]
[338195941,1726381872692,-500.0,0.00013541,2]
[338195942,1726381872703,-895.97,0.00013541,2]
[338195943,1726381872712,-3692.58,0.00013541,2]
[338195944,1726381872722,-623.26,0.00013541,2]
[338195945,1726381872732,-1017.51,0.00013541,2]
[338195946,1726381872742,-500.0,0.00013541,2]
[338195947,1726381872752,-938.75,0.00013541,2]
[338195948,1726381872761,-500.0,0.00013541,2]
[338195949,1726381872771,-690.38,0.00013541,2]
[338195950,1726381872780,-617.99,0.00013541,2]
[338195951,1726381872790,-415.854104,0.00013541,2]
[338195952,1726381872799,-112.21555465,0.00013541,2]
[338195953,1726381873979,-387.78444535,0.00013541,2]
[338195954,1726381873989,-415.854104,0.00013541,2]
[338195955,1726381873998,-630.12449443,0.00013541,2]
[338195956,1726381874011,-652.67550557,0.00013541,2]
[338195957,1726381874021,-500.0,0.00013541,2]
[338195958,1726381874030,-64.83124506,0.00013541,2]
[338195959,1726381874130,-401.47892665,0.00013541,2]
[338195960,1726381874142,-523.04674326,0.00013541,2]
[338195961,1726381875146,-1596.35914789,0.0001299,2]
[338195962,1726381875805,-1379.07085211,0.0001299,2]
[338195963,1726381875815,-500.0,0.00012992,2]
[338195964,1726381875824,-2100.21063275,0.00013264,2]
[338195965,1726381875836,-875.21936725,0.00013264,2]
[338195966,1726381875845,-175.92618327,0.00013266,2]
[338195967,1726381875858,-65.57381673,0.00013266,2]
[338195968,1726381875867,-357.78,0.000133,2]
[338195969,1726381875876,-56.98618327,0.00013538,2]
[338195970,1726381875888,-433.9560001,0.00013538,2]
[338195971,1726381875993,-500.0,0.00013538,2]
[338195972,1726381876004,-695.19249147,0.00013538,2]
[338195973,1726381876016,-608.35712949,0.00013538,2]
[338195974,1726381876028,-680.93819567,0.00013538,2]
[338195975,1726381876037,-462.46699433,0.00013541,2]
[338195976,1726381876054,-13.7260907,0.00013541,2]
[338195977,1726381876064,-500.0,0.00013541,2]
[338195978,1726381876075,-629.6790993,0.00013541,2]
[338195979,1726381876088,-285.56665977,0.00013541,2]
[338195980,1726381879005,812.41,0.00010959,2]
[338195981,1726381898404,500.0,0.00011164,2]
[338195982,1726381929823,245.0,0.00010581,2]
[338195984,1726382007839,250.0,0.00012421,2]
[338195985,1726382023056,163.02,0.00012414,2]
[338195986,1726382080056,155.02,0.00010959,2]
[338195987,1726382095543,328.0,0.00012318,2]
[338195988,1726382129741,627.76,0.0001226,2]
[338195989,1726382129953,627.76,0.00012263,2]
[338195990,1726382130156,627.76,0.00012266,2]
[338195991,1726382130356,627.76,0.0001227,2]
[338195992,1726382130550,627.76,0.00012273,2]
[338195993,1726382130766,627.76,0.00012276,2]
[338195994,1726382130975,627.76,0.00012279,2]
[338195995,1726382131245,627.76,0.00012282,2]
[338195996,1726382131448,627.76,0.00012286,2]
[338195997,1726382131648,627.76,0.00012289,2]
[338195998,1726382131878,627.76,0.00012292,2]
[338195999,1726382132084,627.76,0.00012295,2]
[338196000,1726382132828,627.76,0.00012299,2]
[338196001,1726382132950,627.76,0.00012302,2]
[338196002,1726382132995,627.76,0.00012305,2]
[338196003,1726382133123,627.76,0.00012308,2]
[338196004,1726382133331,627.76,0.00012312,2]
[338196005,1726382133541,627.76,0.00012315,2]
[338196006,1726382133746,627.76,0.00012318,2]
[338196007,1726382133959,627.76,0.00012321,2]
[338196010,1726382285343,23900.0,0.00012254,2]
[338196011,1726382285710,250.0,0.00012254,2]
[338196012,1726382296837,150.2,0.00012254,2]
[338196013,1726382370592,175.58,9.8e-05,2]
[338196014,1726382483059,281.23,0.00010305,2]
[338196015,1726382483469,281.23,0.00012569,2]
[338196016,1726382490643,1074.43,0.00012223,2]
[338196017,1726382516060,2000.0,0.00012223,2]
[338196018,1726382531753,250.0,0.00012223,2]
[338196019,1726382563071,150.0,0.0001222,2]
[338196020,1726382637849,172.87,0.00012193,2]
[338196021,1726382647341,604.04,0.00012193,2]
[338196022,1726382653728,737.6,0.00012193,2]
[338196023,1726382659818,5170.77,0.00012179,2]
[338196024,1726382665197,276.55,0.00010959,2]
[338196025,1726382674098,5575.04,0.00012181,2]
[338196026,1726382675049,328.35,0.00012163,2]
[338196027,1726382711354,384.4,0.00012137,2]
[338196028,1726382711565,384.4,0.0001214,2]
[338196029,1726382711772,384.4,0.00012143,2]
[338196030,1726382712197,384.4,0.00012146,2]
[338196031,1726382712389,384.4,0.0001215,2]
[338196032,1726382712585,384.4,0.00012153,2]
[338196033,1726382712809,384.4,0.00012156,2]
[338196034,1726382713121,384.4,0.00012159,2]
[338196035,1726382713335,384.4,0.00012162,2]
[338196036,1726382713581,384.4,0.00012166,2]
[338196037,1726382713731,384.4,0.00012169,2]
[338196038,1726382714192,384.4,0.00012172,2]
[338196039,1726382714392,384.4,0.00012175,2]
[338196040,1726382715096,384.4,0.00012178,2]
[338196041,1726382715416,384.4,0.00012182,2]
[338196042,1726382715479,384.4,0.00012185,2]
[338196043,1726382715639,384.4,0.00012188,2]
[338196044,1726382715701,384.4,0.00012191,2]
[338196045,1726382715774,384.4,0.00012194,2]
[338196046,1726382716086,384.4,0.00012198,2]
[338196047,1726382735638,150.0,0.00011934,2]
[338196048,1726382790515,505.08566801,0.00011164,2]
[338196049,1726382803153,755.46,0.00012111,2]
[338196050,1726382824098,4419.52,0.00012208,2]
[338196051,1726382830580,250.0,0.00012098,2]
[338196054,1726382857182,904.01,0.00012103,2]
[338196056,1726382877036,698.27,0.00012114,2]
[338196062,1726382971040,161.71,0.0001211,2]
[338196063,1726382978783,884.93,0.00012112,2]
[338196064,1726382997560,1069.14680143,0.00012,5]
[338196065,1726383002781,267.69,0.00010182,2]
[338196066,1726383003128,267.69,0.00012446,2]
[338196069,1726383032398,-170.13,0.00012878,2]
[338196070,1726383032409,-150.0,0.00012888,2]
[338196071,1726383032418,-140.46415606,0.00012888,2]
[338196072,1726383032430,-159.53584394,0.00012888,2]
[338196073,1726383032440,-201.28530909,0.00012889,2]
[338196074,1726383032449,-329.11819762,0.00012889,2]
[338196075,1726383032459,-354.4753,0.00012891,2]
[338196076,1726383032469,-8271.8635,0.00012891,2]
[338196077,1726383032478,-158.56691584,0.00012891,2]
[338196078,1726383032487,-155.01263889,0.00012891,2]
[338196079,1726383032497,-160.74645545,0.00012892,2]
[338196080,1726383032506,-2182.9252803,0.000129,2]
[338196081,1726383032516,-6605.18035398,0.00012963,2]
[338196082,1726383032525,-4047.05,0.0001298,2]
[338196083,1726383032535,-499.99,0.0001298,2]
[338196084,1726383032544,-150.84,0.0001298,2]
[338196085,1726383032554,-1941.8,0.00012988,2]
[338196086,1726383032563,-2099.55,0.00012988,2]
[338196087,1726383032573,-3320.62,0.00012988,2]
[338196088,1726383032582,-2051.13,0.00012988,2]
[338196089,1726383032592,-500.0,0.00012988,2]
[338196090,1726383032601,-2037.36,0.00012988,2]
[338196091,1726383032611,-958.71,0.00012988,2]
[338196092,1726383032620,-2428.29,0.00012988,2]
[338196093,1726383032629,-902.22061204,0.00012988,2]
[338196097,1726383038346,-500.0,0.00012973,2]
[338196098,1726383038355,-929.72938796,0.00012988,2]
[338196099,1726383038365,-7783.27,0.00012988,2]
[338196100,1726383038375,-2393.95,0.00012988,2]
[338196101,1726383038384,-3642.61,0.00012988,2]
[338196102,1726383038393,-2305.6,0.00012988,2]
[338196103,1726383038407,-1566.59,0.00012988,2]
[338196104,1726383038416,-1405.99,0.00012988,2]
[338196105,1726383038426,-591.24,0.00012988,2]
[338196106,1726383038435,-680.75,0.00012988,2]
[338196107,1726383038444,-1736.49,0.00012988,2]
[338196108,1726383038454,-34438.35,0.00012988,2]
[338196109,1726383038463,-907.88,0.00012988,2]
[338196110,1726383038472,-2204.36,0.00012988,2]
[338196111,1726383038481,-3656.69,0.00012988,2]
[338196112,1726383038490,-500.0,0.00012989,2]
[338196113,1726383038499,-500.0,0.00012989,2]
[338196114,1726383038509,-500.0,0.00012989,2]
[338196115,1726383038519,-500.0,0.00012989,2]
[338196116,1726383038529,-500.0,0.00012989,2]
[338196117,1726383038539,-500.0,0.00012989,2]
[338196118,1726383038550,-500.0,0.00012989,2]
[338196119,1726383038567,-500.0,0.00012989,2]
[338196120,1726383038576,-1356.86,0.00012989,2]
[338196121,1726383038585,-500.0,0.00012989,2]
[338196122,1726383038594,-932.43,0.00012989,2]
[338196123,1726383038604,-500.0,0.00012989,2]
[338196124,1726383038613,-1273.26,0.00012989,2]
[338196125,1726383038622,-500.0,0.00012989,2]
[338196126,1726383038631,-500.0,0.00012989,2]
[338196127,1726383038639,-500.0,0.00012989,2]
[338196128,1726383038649,-500.0,0.00012989,2]
[338196129,1726383038659,-3019.17,0.00012989,2]
[338196130,1726383038668,-1488.59,0.00012989,2]
[338196131,1726383038677,-500.0,0.00012989,2]
[338196132,1726383038686,-974.84,0.00012989,2]
[338196133,1726383038695,-2670.93,0.00012989,2]
[338196134,1726383038704,-500.0,0.00012989,2]
[338196135,1726383038713,-3979.68,0.00012989,2]
[338196136,1726383038723,-500.0,0.00012989,2]
[338196138,1726383038732,-2191.06,0.00012989,2]
[338196140,1726383038742,-500.0,0.00012989,2]
[338196142,1726383038753,-500.0,0.00012989,2]
[338196144,1726383038764,-1839.25,0.00012989,2]
[338196146,1726383038773,-2130.54,0.00012989,2]
[338196148,1726383038783,-500.0,0.00012989,2]
[338196150,1726383038794,-1022.07,0.00012989,2]
[338196152,1726383038804,-5078.31,0.00012989,2]
[338196155,1726383038815,-500.0,0.00012989,2]
[338196157,1726383038826,-526.3,0.00012989,2]
[338196159,1726383038835,-500.0,0.00012989,2]
[338196161,1726383038846,-2298.9,0.00012989,2]
[338196163,1726383038856,-500.0,0.00012989,2]
[338196165,1726383038867,-3029.5,0.00012989,2]
[338196167,1726383038877,-500.0,0.00012989,2]
[338196169,1726383038887,-2371.68,0.00012989,2]
[338196171,1726383038897,-500.0,0.00012989,2]
[338196173,1726383038907,-500.0,0.00012989,2]
[338196175,1726383038917,-500.0,0.00012989,2]
[338196177,1726383038928,-1221.11,0.00012989,2]
[338196179,1726383038937,-500.0,0.00012989,2]
[338196181,1726383038947,-500.0,0.00012989,2]
[338196184,1726383038958,-1783.09,0.00012989,2]
[338196186,1726383038968,-500.0,0.00012989,2]
[338196188,1726383038977,-850.28,0.00012989,2]
[338196190,1726383038986,-500.0,0.00012989,2]
[338196192,1726383038996,-776.31,0.00012989,2]
[338196194,1726383039006,-1019.94,0.00012989,2]
[338196196,1726383039015,-500.0,0.00012989,2]
[338196198,1726383039024,-500.0,0.00012989,2]
[338196199,1726383039034,-808.65,0.00012989,2]
[338196201,1726383039043,-956.46,0.00012989,2]
[338196203,1726383039056,-500.0,0.00012989,2]
[338196205,1726383039066,-500.0,0.00012989,2]
[338196207,1726383039080,-1814.95,0.00012989,2]
[338196209,1726383039090,-500.0,0.00012989,2]
[338196211,1726383039099,-639.42,0.00012989,2]
[338196213,1726383039108,-500.0,0.00012989,2]
[338196215,1726383039118,-500.0,0.00012989,2]
[338196217,1726383039129,-500.0,0.00012989,2]
[338196219,1726383039139,-1814.14,0.00012989,2]
[338196222,1726383039152,-500.0,0.00012989,2]
[338196224,1726383039162,-500.0,0.00012989,2]
[338196226,1726383039171,-500.0,0.00012989,2]
[338196228,1726383039180,-500.0,0.00012989,2]
[338196230,1726383039190,-500.0,0.00012989,2]
[338196232,1726383039200,-1512.57,0.00012989,2]
[338196233,1726383039209,-500.0,0.00012989,2]
[338196236,1726383039219,-500.0,0.00012989,2]
[338196238,1726383039228,-2434.44,0.00012989,2]
[338196239,1726383039237,-500.0,0.00012989,2]
[338196242,1726383039248,-500.0,0.00012989,2]
[338196244,1726383039258,-1884.48,0.00012989,2]
[338196246,1726383039267,-2091.49,0.00012989,2]
[338196248,1726383039277,-500.0,0.00012989,2]
[338196250,1726383039286,-500.0,0.00012989,2]
[338196252,1726383039297,-951.0,0.00012989,2]
[338196253,1726383039306,-510.61,0.00012989,2]
[338196255,1726383039315,-500.0,0.00012989,2]
[338196257,1726383039323,-509.7051661,0.00012989,2]
[338196259,1726383039333,-500.0,0.00012989,2]
[338196261,1726383039342,-500.0,0.00012989,2]
[338196263,1726383039351,-872.2,0.00012989,2]
[338196265,1726383039360,-500.0,0.00012989,2]
[338196266,1726383039370,-322.86766757,0.00012989,2]
[338196268,1726383039379,-1364.88,0.00012989,2]
[338196270,1726383039388,-500.0,0.00012989,2]
[338196272,1726383039397,-500.0,0.00012989,2]
[338196274,1726383039407,-1583.25,0.00012989,2]
[338196275,1726383039416,-587.82,0.00012989,2]
[338196277,1726383039425,-1363.76,0.00012989,2]
[338196279,1726383039434,-500.0,0.00012989,2]
[338196281,1726383039444,-1848.3,0.00012989,2]
[338196283,1726383039453,-751.84,0.00012989,2]
[338196285,1726383039462,-500.0,0.00012989,2]
[338196286,1726383039471,-1853.92,0.00012989,2]
[338196288,1726383039480,-500.0,0.00012989,2]
[338196290,1726383039489,-1115.78,0.00012989,2]
[338196292,1726383039498,-1623.55,0.00012989,2]
[338196294,1726383039508,-2826.45,0.00012989,2]
[338196296,1726383039517,-500.0,0.00012989,2]
[338196298,1726383039527,-500.0,0.00012989,2]
[338196300,1726383039536,-500.0,0.00012989,2]
[338196302,1726383039545,-1557.01,0.00012989,2]
[338196303,1726383039556,-500.0,0.00012989,2]
[338196304,1726383039565,-500.0,0.00012989,2]
[338196305,1726383039574,-500.0,0.00012989,2]
[338196306,1726383039584,-386.76148567,0.00012989,2]
[338196307,1726383039593,-500.0,0.00012989,2]
[338196308,1726383039602,-627.37,0.00012989,2]
[338196309,1726383039612,-500.0,0.00012989,2]
[338196310,1726383039623,-842.96,0.00012989,2]
[338196311,1726383039632,-500.0,0.00012989,2]
[338196312,1726383039641,-1495.79,0.00012989,2]
[338196313,1726383039650,-500.0,0.00012989,2]
[338196314,1726383039660,-1662.01,0.00012989,2]
[338196315,1726383039669,-1428.5,0.00012989,2]
[338196316,1726383039679,-500.0,0.00012989,2]
[338196317,1726383039689,-2035.07,0.00012989,2]
[338196318,1726383039699,-500.0,0.00012989,2]
[338196319,1726383039710,-500.0,0.00012989,2]
[338196320,1726383039720,-500.0,0.00012989,2]
[338196321,1726383039730,-500.0,0.00012989,2]
[338196322,1726383039739,-1440.12,0.00012989,2]
[338196323,1726383039749,-500.0,0.00012989,2]
[338196324,1726383039759,-500.0,0.00012989,2]
[338196326,1726383039768,-871.39,0.00012989,2]
[338196327,1726383039778,-1117.48,0.00012989,2]
[338196329,1726383039787,-2138.62,0.00012989,2]
[338196331,1726383039797,-605.92747477,0.00012989,2]
[338196333,1726383039806,-1797.48,0.00012989,2]
[338196334,1726383039815,-2423.64,0.00012989,2]
[338196335,1726383039824,-2394.69,0.00012989,2]
[338196336,1726383039835,-500.0,0.00012989,2]
[338196337,1726383039844,-972.52,0.00012989,2]
[338196338,1726383039854,-8882.96,0.00012989,2]
[338196339,1726383039863,-6375.44,0.00012989,2]
[338196342,1726383040136,-500.0,0.00012989,2]
[338196344,1726383040148,-500.0,0.00012989,2]
[338196346,1726383040158,-500.0,0.00012989,2]
[338196347,1726383040168,-500.0,0.00012989,2]
[338196348,1726383040177,-2158.23,0.00012989,2]
[338196349,1726383040186,-5809.13,0.00012989,2]
[338196351,1726383040196,-583.97,0.00012989,2]
[338196353,1726383040205,-500.0,0.00012989,2]
[338196355,1726383040214,-598.67,0.00012989,2]
[338196357,1726383040223,-964.89,0.00012989,2]
[338196359,1726383040233,-500.0,0.00012989,2]
[338196360,1726383040243,-1442.62,0.00012989,2]
[338196361,1726383040252,-1070.5,0.00012989,2]
[338196362,1726383040261,-1263.06,0.00012989,2]
[338196363,1726383040270,-4208.49,0.00012989,2]
[338196364,1726383040279,-500.0,0.00012989,2]
[338196365,1726383040288,-500.0,0.00012989,2]
[338196366,1726383040298,-500.0,0.00012989,2]
[338196367,1726383040307,-500.0,0.00012989,2]
[338196368,1726383040316,-2183.36,0.00012989,2]
[338196369,1726383040326,-2510.62,0.00012989,2]
[338196370,1726383040335,-4968.65,0.00012989,2]
[338196371,1726383040344,-5216.02,0.00012989,2]
[338196372,1726383040354,-593.94,0.00012989,2]
[338196373,1726383040363,-1139.71,0.00012989,2]
[338196374,1726383040372,-1853.27,0.00012989,2]
[338196375,1726383040382,-500.0,0.00012989,2]
[338196376,1726383040391,-221.54983856,0.00012989,2]
[338196377,1726383040400,-786.04,0.00012989,2]
[338196378,1726383040409,-500.0,0.00012989,2]
[338196379,1726383040419,-500.0,0.00012989,2]
[338196380,1726383040428,-500.0,0.00012989,2]
[338196381,1726383040437,-500.0,0.00012989,2]
[338196382,1726383040446,-500.0,0.00012989,2]
[338196383,1726383040456,-5093.06,0.00012989,2]
[338196384,1726383040466,-2138.12,0.00012989,2]
[338196385,1726383040475,-500.0,0.00012989,2]
[338196386,1726383040484,-500.0,0.00012989,2]
[338196387,1726383040494,-584.52,0.00012989,2]
[338196388,1726383040503,-1286.64,0.00012989,2]
[338196389,1726383040513,-1238.33,0.00012989,2]
[338196390,1726383040522,-1035.07,0.00012989,2]